bitfinex/quotes_BTCUSD_20250614
["timestamp","ask_amount","ask_price","bid_price","bid_amount"]
[1749934423853,0.59778138,105000.0,104990.0,0.29659182]
[1749934425211,0.58825758,105000.0,104990.0,0.29659182]
[1749934425629,0.59778129,105000.0,104990.0,0.29659182]
[1749934425837,0.37137061,105000.0,104990.0,0.3061159]
[1749934426041,0.57873387,105000.0,104990.0,0.3061159]
[1749934426273,0.58825731,105000.0,104990.0,0.3061159]
[1749934426478,0.57873387,105000.0,104990.0,0.3061159]
[1749934426902,0.56913061,105000.0,104990.0,0.3061159]
[1749934427105,0.57865396,105000.0,104990.0,0.3061159]
[1749934428473,0.5881774,105000.0,104990.0,0.3061159]
[1749934429297,0.3904174,105000.0,104990.0,0.3061159]
[1749934429489,0.78817784,105000.0,104990.0,0.28706765]
[1749934430881,0.78817784,105000.0,104990.0,0.2775433]
[1749934431626,0.77865449,105000.0,104990.0,0.26801886]
[1749934431832,0.76913105,105000.0,104990.0,0.26801886]
[1749934432256,1.31320193,105000.0,104990.0,0.26801886]
[1749934434650,1.31320193,105000.0,104990.0,0.26801904]
[1749934435031,1.3036784,105000.0,104990.0,0.26801904]
[1749934437402,1.2941546,105000.0,104990.0,0.068]
[1749934440209,1.2941546,105000.0,104990.0,0.067]
[1749934440429,1.2961546,105000.0,104990.0,0.064]
[1749934440620,1.2971546,105000.0,104990.0,0.064]
[1749934441808,1.2941546,105000.0,104990.0,0.064]
[1749934441991,1.2941546,105000.0,104990.0,0.065]
[1749934442863,1.2941546,105000.0,104990.0,0.07452471]
[1749934444502,1.2941546,105000.0,104990.0,0.26501904]
[1749934444725,1.3036784,105000.0,104990.0,0.28406801]
[1749934444948,1.3036784,105000.0,104990.0,0.27454366]
[1749934445429,1.1059184,105000.0,104990.0,0.27454366]
[1749934445658,1.3036784,105000.0,104990.0,0.27454366]
[1749934446093,1.3036784,105000.0,104990.0,0.28406819]
[1749934448487,1.3036784,105000.0,104990.0,0.29359263]
[1749934448728,1.3036784,105000.0,104990.0,0.28406819]
[1749934449847,1.49606938,105000.0,104990.0,0.0329]
[1749934450071,1.49606938,105000.0,104990.0,0.001]
[1749934450750,1.49606938,105000.0,104990.0,0.0316]
[1749934450973,1.49606938,105000.0,104990.0,0.0619]
[1749934451428,1.39992016,105000.0,104990.0,0.0619]
[1749934451697,0.42189432,105000.0,104990.0,0.27144312]
[1749934451948,0.23861396,105000.0,104990.0,0.2809672]
[1749934452183,0.25766048,105000.0,104990.0,0.2809672]
[1749934452419,0.2671841,105000.0,104990.0,0.30364227]
[1749934452639,0.2671841,105000.0,104990.0,0.2809672]
[1749934452857,0.1104641,105000.0,104990.0,0.2809672]
[1749934453547,0.09141695,105000.0,104990.0,0.2809672]
[1749934453805,0.10094048,105000.0,104990.0,0.2809672]
[1749934454048,0.09141695,105000.0,104990.0,0.37711642]
[1749934454480,0.07237052,105000.0,104990.0,0.37711642]
[1749934454694,0.0818936,105000.0,104990.0,0.37711642]
[1749934454966,0.02184753,105000.0,104990.0,0.37711642]
[1749934455227,0.02184753,105000.0,104990.0,1.01742906]
[1749934455506,0.55676461,105010.0,105000.0,0.28374651]
[1749934455718,0.56628724,105010.0,105000.0,0.31870105]
[1749934455964,0.98581739,105020.0,105010.0,0.27420358]
[1749934456208,1.02681739,105020.0,105010.0,0.27420358]
[1749934456454,0.87961938,105020.0,105010.0,0.27420358]
[1749934456697,1.03633938,105020.0,105010.0,0.27420358]
[1749934456946,1.0364298,105020.0,105010.0,0.27420358]
[1749934458061,1.0384298,105020.0,105010.0,0.27420358]
[1749934458241,1.0404298,105020.0,105010.0,0.27420358]
[1749934458705,1.0403898,105020.0,105010.0,0.28372602]
[1749934458906,1.0403898,105020.0,105010.0,0.27420358]
[1749934459729,1.6037539,105020.0,105010.0,0.27420358]
[1749934460642,1.6037539,105020.0,105010.0,0.28372611]
[1749934460889,1.59423227,105020.0,105010.0,0.27420358]
[1749934461330,1.59423227,105020.0,105010.0,0.32257622]
[1749934461331,0.02835751,105020.0,105010.0,0.32257622]
[1749934461562,0.06434364,105020.0,105010.0,0.34162101]
[1749934461791,0.02338364,105020.0,105010.0,0.34162101]
[1749934462016,0.02338364,105020.0,105010.0,0.43786277]
[1749934462448,0.02138364,105020.0,105010.0,0.43786277]
[1749934462884,0.01938364,105020.0,105010.0,0.43986277]
[1749934463116,0.01938364,105020.0,105010.0,0.44086277]
[1749934463619,0.028905,105020.0,105010.0,0.39249013]
[1749934463859,0.60154095,105020.0,105010.0,0.29624837]
[1749934464071,0.77293805,105020.0,105010.0,0.0677]
[1749934464313,0.77293805,105020.0,105010.0,0.2772034]
[1749934464500,0.58249814,105020.0,105010.0,0.2962481]
[1749934464777,0.5920195,105020.0,105010.0,0.2962481]
[1749934465001,0.7919814,105020.0,105010.0,0.28672584]
[1749934465719,0.24791052,105020.0,105010.0,0.28672584]
[1749934466162,0.24791052,105020.0,105010.0,0.29624819]
[1749934468872,0.04794862,105020.0,105010.0,0.30577045]
[1749934469092,0.05747052,105020.0,105010.0,0.30577045]
[1749934469544,0.06699251,105020.0,105010.0,0.29624819]
[1749934469961,0.24791097,105020.0,105010.0,0.29624819]
[1749934470175,0.23838925,105020.0,105010.0,0.28672584]
[1749934470605,0.43598925,105020.0,105010.0,0.28672584]
[1749934471302,0.43598925,105020.0,105010.0,0.29624819]
[1749934471547,0.43598925,105020.0,105010.0,0.30577045]
[1749934471767,0.98006013,105020.0,105010.0,0.28672584]
[1749934472700,0.43598925,105020.0,105010.0,0.29624819]
[1749934475508,0.23838925,105020.0,105010.0,0.29624819]
[1749934475724,0.43598925,105020.0,105010.0,0.29624819]
[1749934475933,0.24554934,105020.0,105010.0,0.29624819]
[1749934477424,0.43598925,105020.0,105010.0,0.29624819]
[1749934478091,0.43598925,105020.0,105010.0,0.28672584]
[1749934478314,0.43598925,105020.0,105010.0,0.29624819]
[1749934478518,0.24554934,105020.0,105010.0,0.29624819]
[1749934479650,0.23602735,105020.0,105010.0,0.30577045]
[1749934480319,0.42646726,105020.0,105010.0,0.26768077]
[1749934480759,0.42646726,105020.0,105010.0,0.2772033]
[1749934481283,0.97053814,105020.0,105010.0,0.28672574]
[1749934481756,0.42646726,105020.0,105010.0,0.28672574]
[1749934482009,0.42646726,105020.0,105010.0,0.2772034]
[1749934482269,0.41694545,105020.0,105010.0,0.27720367]
[1749934483264,0.40742355,105020.0,105010.0,0.26768095]
[1749934483518,0.40742355,105020.0,105010.0,0.0677]
[1749934483772,0.95149443,105020.0,105010.0,0.0677]
[1749934484482,0.95149443,105020.0,105010.0,0.26768086]
[1749934484958,0.95149443,105020.0,105010.0,0.0677]
[1749934485222,1.04764365,105020.0,105010.0,0.003]
[1749934486597,0.95149443,105020.0,105010.0,0.003]
[1749934486811,0.95149443,105020.0,105010.0,0.0346]
[1749934487979,1.65773619,105020.0,105010.0,0.003]
[1749934488861,1.65773619,105020.0,105010.0,0.002]
[1749934489302,0.02857032,105000.0,104990.0,0.25899146]
[1749934489510,0.18517032,105000.0,104990.0,0.25899146]
[1749934489717,0.02857032,105000.0,104990.0,0.29079146]
[1749934490196,0.02857032,105000.0,104990.0,0.33987413]
[1749934490414,0.01904661,105000.0,104990.0,0.33987413]
[1749934490631,0.02857014,105000.0,104990.0,0.34587413]
[1749934490856,0.03809376,105000.0,104990.0,0.34587413]
[1749934491075,0.60703947,105010.0,105000.0,0.27252316]
[1749934491551,0.40951947,105010.0,105000.0,0.27252316]
[1749934491736,0.60703947,105010.0,105000.0,0.27252316]
[1749934492378,0.60703947,105010.0,105000.0,0.27352316]
[1749934492591,0.60703947,105010.0,105000.0,0.27552316]
[1749934492809,0.69366606,105010.0,105000.0,0.066]
[1749934493255,1.14158772,105010.0,105000.0,0.066]
[1749934493506,1.14158772,105010.0,105000.0,0.003]
[1749934493740,1.48158772,105010.0,105000.0,0.003]
[1749934494409,1.57782948,105010.0,105000.0,0.003]
[1749934495075,1.84952948,105010.0,105000.0,0.003]
[1749934495311,1.83042948,105010.0,105000.0,0.003]
[1749934495525,1.79782948,105010.0,105000.0,0.003]
[1749934497438,1.57782948,105010.0,105000.0,0.0337]
[1749934500946,1.57782948,105010.0,105000.0,0.0647]
[1749934502237,1.57782948,105010.0,105000.0,0.0337]
[1749934503183,1.60646248,105010.0,105000.0,0.0337]
[1749934504466,1.60646248,105010.0,105000.0,0.0647]
[1749934506412,1.60642248,105010.0,105000.0,0.0647]
[1749934506914,1.44986248,105010.0,105000.0,0.0647]
[1749934507128,1.39689958,105010.0,105000.0,0.0647]
[1749934507341,1.39689958,105010.0,105000.0,0.09402902]
[1749934507555,0.6648716,105010.0,105000.0,0.28450521]
[1749934507780,0.73747684,105010.0,105000.0,0.30355254]
[1749934508640,0.53999684,105010.0,105000.0,0.30355254]
[1749934508878,0.22604779,105010.0,105000.0,0.32259915]
[1749934509095,0.04801464,105020.0,105010.0,0.21902565]
[1749934509348,0.27930862,105020.0,105010.0,0.36785261]
[1749934509566,0.43586862,105020.0,105010.0,0.36785261]
[1749934509784,0.10791197,105020.0,105010.0,0.37737505]
[1749934510003,0.45491188,105020.0,105010.0,0.37737505]
[1749934510222,0.44539061,105020.0,105010.0,0.28122574]
[1749934510436,0.44539061,105020.0,105010.0,0.27170339]
[1749934510685,0.44539061,105020.0,105010.0,0.28122583]
[1749934510921,0.42634744,105020.0,105010.0,0.26218086]
[1749934511147,0.41682554,105020.0,105010.0,0.26218086]
[1749934511361,0.41682554,105020.0,105010.0,0.27170358]
[1749934511796,0.41682554,105020.0,105010.0,0.28122621]
[1749934512032,0.26026554,105020.0,105010.0,0.28122621]
[1749934512251,0.26026554,105020.0,105010.0,0.29074874]
[1749934512467,0.26026554,105020.0,105010.0,0.30027118]
[1749934512907,0.26026554,105020.0,105010.0,0.28122621]
[1749934515986,0.26026554,105020.0,105010.0,0.29074865]
[1749934516421,0.26026554,105020.0,105010.0,0.28122621]
[1749934519760,0.26026554,105020.0,105010.0,0.29074874]
[1749934520619,0.41674554,105020.0,105010.0,0.29074856]
[1749934520837,0.41674554,105020.0,105010.0,0.29074874]
[1749934521270,0.41674554,105020.0,105010.0,0.30027118]
[1749934523534,0.41674554,105020.0,105010.0,0.30027072]
[1749934525980,0.42626726,105020.0,105010.0,0.30027072]
[1749934526290,0.06026364,105020.0,105010.0,0.30027026]
[1749934526526,9.042e-05,105020.0,105010.0,0.9405829]
[1749934527869,9.042e-05,105020.0,105010.0,0.9445829]
[1749934528088,9.042e-05,105020.0,105010.0,1.04073212]
[1749934528496,9.042e-05,105020.0,105010.0,1.04173212]
[1749934529018,9.042e-05,105020.0,105010.0,1.04073212]
[1749934529461,9.042e-05,105020.0,105010.0,1.04273212]
[1749934532784,9.042e-05,105020.0,105010.0,0.49866124]
[1749934533234,9.042e-05,105020.0,105010.0,0.40251202]
[1749934533450,0.01913341,105020.0,105010.0,0.30627026]
[1749934534753,0.02865522,105020.0,105010.0,0.30627026]
[1749934536017,0.01913341,105020.0,105010.0,0.30627026]
[1749934536221,0.00961178,105020.0,105010.0,0.30627026]
[1749934536429,0.01913341,105020.0,105010.0,0.30627026]
[1749934537461,0.00961178,105020.0,105010.0,0.30627026]
[1749934537671,0.00961178,105020.0,105010.0,0.37452581]
[1749934541235,0.00961178,105020.0,105010.0,0.30627026]
[1749934542983,0.01913323,105020.0,105010.0,0.30627026]
[1749934543860,9.042e-05,105020.0,105010.0,0.30627026]
[1749934544084,0.00961178,105020.0,105010.0,0.30627026]
[1749934544701,0.00467897,105020.0,105010.0,0.30627026]
[1749934545261,0.01420051,105020.0,105010.0,0.30627026]
[1749934545807,0.01420042,105020.0,105010.0,0.30627026]
[1749934546485,0.02372196,105020.0,105010.0,0.30627026]
[1749934546839,0.01420042,105020.0,105010.0,0.30627026]
[1749934547501,0.00467897,105020.0,105010.0,0.30627026]
[1749934547875,0.01420051,105020.0,105010.0,0.30627026]
[1749934548259,0.00467897,105020.0,105010.0,0.30627026]
[1749934548665,0.01420051,105020.0,105010.0,0.30627026]
[1749934549290,0.00467897,105020.0,105010.0,0.30627026]
[1749934549833,0.01420042,105020.0,105010.0,0.30627026]
[1749934549996,0.02354119,105020.0,105010.0,0.30627026]
[1749934550896,0.01401974,105020.0,105010.0,0.30627026]
[1749934552367,0.0044982,105020.0,105010.0,0.40241948]
[1749934552636,0.00952117,105020.0,105010.0,0.38337405]
[1749934552858,0.01904262,105020.0,105010.0,0.38337405]
[1749934553329,0.01904262,105020.0,105010.0,0.28722483]
[1749934554287,0.01904244,105020.0,105010.0,0.28722483]
[1749934554487,0.02856389,105020.0,105010.0,0.28722483]
[1749934558388,0.0285638,105020.0,105010.0,0.28722483]
[1749934559291,0.0285638,105020.0,105010.0,0.89991376]
[1749934559716,0.68938895,105030.0,105020.0,0.2507048]
[1749934559924,0.68938895,105030.0,105020.0,0.2827048]
[1749934559925,0.84582895,105030.0,105020.0,0.2827048]
[1749934560366,1.03625073,105030.0,105020.0,0.2827048]
[1749934560787,1.03625073,105030.0,105020.0,0.2847048]
[1749934560985,0.84582895,105030.0,105020.0,0.2847048]
[1749934561222,0.84582895,105030.0,105020.0,0.2857048]
[1749934562456,1.03625073,105030.0,105020.0,0.27618344]
[1749934562894,1.03625073,105030.0,105020.0,0.28570498]
[1749934563103,1.03625073,105030.0,105020.0,0.27618344]
[1749934563545,0.01685795,105030.0,105020.0,0.3702704]
[1749934563773,0.0671784,105030.0,105020.0,0.98295933]
[1749934564028,0.05984099,105030.0,105020.0,0.98295933]
[1749934564677,0.00952045,105030.0,105020.0,0.98295933]
[1749934564890,0.38246946,105040.0,105030.0,0.28368385]
[1749934565104,0.03294882,105040.0,105030.0,0.38935352]
[1749934565322,0.08224488,105040.0,105030.0,0.2932043]
[1749934565545,0.02240589,105040.0,105030.0,0.2932043]
[1749934566404,0.02240589,105040.0,105030.0,0.83757943]
[1749934566641,0.02240589,105040.0,105030.0,0.93372865]
[1749934571233,0.00497734,105040.0,105030.0,0.93372865]
[1749934572486,0.02067231,105040.0,105030.0,0.93372865]
[1749934572900,0.00497734,105040.0,105030.0,0.93372865]
[1749934573273,0.0144967,105040.0,105030.0,0.93372865]
[1749934573474,0.00497734,105040.0,105030.0,0.93372865]
[1749934574790,0.0144967,105040.0,105030.0,0.93372865]
[1749934575388,0.03012282,105040.0,105030.0,0.93372865]
[1749934575611,0.01449679,105040.0,105030.0,0.93372865]
[1749934576743,0.01449679,105040.0,105030.0,0.38935352]
[1749934576943,0.00958419,105040.0,105030.0,0.38935352]
[1749934578000,0.02496576,105040.0,105030.0,0.38935352]
[1749934578209,0.0095841,105040.0,105030.0,0.38935352]
[1749934578416,6.474e-05,105040.0,105030.0,0.38935352]
[1749934578628,0.00958428,105040.0,105030.0,0.38935352]
[1749934579526,0.00958419,105040.0,105030.0,0.38935352]
[1749934579731,6.474e-05,105040.0,105030.0,0.38935352]
[1749934580686,0.00958419,105040.0,105030.0,0.38935352]
[1749934581117,0.0095841,105040.0,105030.0,0.38935352]
[1749934581883,6.474e-05,105040.0,105030.0,0.48559528]
[1749934582711,6.474e-05,105040.0,105030.0,1.02997041]
[1749934584380,0.01551682,105040.0,105030.0,1.02997041]
[1749934584581,0.01551682,105040.0,105030.0,0.48559528]
[1749934584582,6.474e-05,105040.0,105030.0,0.48559528]
[1749934584719,0.01910382,105040.0,105030.0,0.36088444]
[1749934584926,0.01910382,105040.0,105030.0,0.53624561]
[1749934585134,6.474e-05,105040.0,105030.0,0.53624561]
[1749934585542,0.0095841,105040.0,105030.0,0.53624561]
[1749934585737,6.474e-05,105040.0,105030.0,0.53624561]
[1749934585935,0.01910364,105040.0,105030.0,0.53624561]
[1749934586183,0.0095841,105040.0,105030.0,0.53624561]
[1749934586522,0.01910355,105040.0,105030.0,0.53624561]
[1749934587550,0.01910355,105040.0,105030.0,1.14874791]
[1749934587801,0.0095841,105040.0,105030.0,1.14874791]
[1749934588623,0.0095841,105040.0,105030.0,0.63239483]
[1749934588831,0.0095841,105040.0,105030.0,1.24489713]
[1749934589038,0.0095841,105040.0,105030.0,1.08857713]
[1749934589245,0.0095841,105040.0,105030.0,1.24489713]
[1749934590058,0.01910355,105040.0,105030.0,1.24489713]
[1749934590264,0.01910355,105040.0,105030.0,0.53624561]
[1749934590786,0.01910355,105040.0,105030.0,1.14874791]
[1749934593300,0.02862327,105040.0,105030.0,0.99242791]
[1749934593503,0.01910355,105040.0,105030.0,1.14870791]
[1749934593911,0.03480952,105040.0,105030.0,1.14870791]
[1749934596437,0.02529007,105040.0,105030.0,1.14870791]
[1749934597270,0.03480961,105040.0,105030.0,1.14870791]
[1749934598447,0.03480952,105040.0,105030.0,1.14870791]
[1749934599255,0.03480952,105040.0,105030.0,0.53620561]
[1749934599461,0.03480952,105040.0,105030.0,1.14870791]
[1749934600770,0.03480952,105040.0,105030.0,0.37040516]
[1749934600976,0.85675556,105040.0,105030.0,0.43044349]
[1749934601179,0.84723611,105040.0,105030.0,0.27416349]
[1749934601338,0.00952054,105030.0,105020.0,0.76121322]
[1749934601535,0.00952036,105030.0,105020.0,0.85745498]
[1749934601738,0.82819675,105040.0,105030.0,0.25178421]
[1749934601739,0.84723675,105040.0,105030.0,0.25178421]
[1749934601903,0.0443308,105040.0,105030.0,0.25178421]
[1749934602109,0.23473445,105040.0,105030.0,0.25178421]
[1749934602363,0.0443308,105040.0,105030.0,0.26130466]
[1749934602914,0.23473445,105040.0,105030.0,0.26130484]
[1749934603315,0.0443308,105040.0,105030.0,0.26130484]
[1749934603516,0.03481062,105040.0,105030.0,0.26130484]
[1749934603720,0.01577071,105040.0,105030.0,1.00205636]
[1749934603923,6.474e-05,105040.0,105030.0,1.09829812]
[1749934604134,6.474e-05,105040.0,105030.0,1.71080042]
[1749934604334,6.474e-05,105040.0,105030.0,1.71180042]
[1749934604763,6.474e-05,105040.0,105030.0,1.09929812]
[1749934605161,6.474e-05,105040.0,105030.0,1.09829812]
[1749934605358,6.474e-05,105040.0,105030.0,1.03006224]
[1749934606625,6.474e-05,105040.0,105030.0,1.03506224]
[1749934606823,6.474e-05,105040.0,105030.0,1.03906224]
[1749934607982,6.474e-05,105040.0,105030.0,0.94291302]
[1749934608609,0.00958428,105040.0,105030.0,0.94291302]
[1749934608816,0.00958428,105040.0,105030.0,0.5549266]
[1749934609023,0.00958419,105040.0,105030.0,0.5549266]
[1749934609228,0.00958419,105040.0,105030.0,0.3986466]
[1749934609433,6.474e-05,105040.0,105030.0,0.5549266]
[1749934609642,0.00958419,105040.0,105030.0,0.5549266]
[1749934610676,0.20950756,105040.0,105030.0,0.30240484]
[1749934610885,0.02862373,105040.0,105030.0,0.30240484]
[1749934611097,0.02862373,105040.0,105030.0,0.45864484]
[1749934611305,0.03814364,105040.0,105030.0,0.45864484]
[1749934611573,0.03814364,105040.0,105030.0,0.30240484]
[1749934611805,0.04766373,105040.0,105030.0,0.45864484]
[1749934612276,0.0427272,105040.0,105030.0,0.30240484]
[1749934612697,0.02855945,105040.0,105030.0,0.30240502]
[1749934612906,0.01903954,105040.0,105030.0,0.31192547]
[1749934615256,0.06966932,105050.0,105040.0,0.00952018]
[1749934615454,0.01903954,105040.0,105030.0,0.30240439]
[1749934616000,0.02855954,105040.0,105030.0,0.29840439]
[1749934616229,2.0507609,105040.0,105030.0,0.005]
[1749934616437,2.0707609,105040.0,105030.0,0.005]
[1749934616851,2.0707609,105040.0,105010.0,0.2949]
[1749934616852,0.20948326,105020.0,105010.0,0.2949]
[1749934617060,0.95070968,105020.0,105010.0,0.2949]
[1749934617260,0.79446968,105020.0,105010.0,0.2949]
[1749934618522,0.79446968,105020.0,105010.0,0.3249]
[1749934618975,0.79446968,105020.0,105010.0,0.3279]
[1749934619430,0.79446968,105020.0,105010.0,0.3309]
[1749934619649,0.79446968,105020.0,105010.0,0.036]
[1749934620632,0.79446968,105020.0,105010.0,0.006]
[1749934623184,0.79446968,105020.0,105010.0,0.0363]
[1749934625274,0.8906189,105020.0,105010.0,0.0363]
[1749934625492,0.8498989,105020.0,105010.0,0.0363]
[1749934625702,1.0468589,105020.0,105010.0,0.0363]
[1749934625912,0.95070968,105020.0,105010.0,0.0363]
[1749934628930,0.95070968,105020.0,105010.0,0.0677]
[1749934629178,0.95070968,105020.0,105010.0,0.22675805]
[1749934629388,0.94118814,105020.0,105010.0,0.0458229]
[1749934629606,0.94118814,105020.0,105010.0,0.05534571]
[1749934630053,0.39692172,105020.0,105010.0,0.26484892]
[1749934630270,0.94118814,105020.0,105010.0,0.26484892]
[1749934630476,0.94118814,105020.0,105010.0,0.29624892]
[1749934631323,0.0380858,105020.0,105010.0,0.28672547]
[1749934631531,0.19432571,105020.0,105010.0,0.28672547]
[1749934631740,0.20384752,105020.0,105010.0,0.28672547]
[1749934635676,0.02856408,105020.0,105010.0,0.28672547]
[1749934635880,0.24456752,105020.0,105010.0,0.28672547]
[1749934639099,0.23504571,105020.0,105010.0,0.28672547]
[1749934639404,0.24456743,105020.0,105010.0,0.28672547]
[1749934639797,0.23504571,105020.0,105010.0,0.28672547]
[1749934639997,0.24456752,105020.0,105010.0,0.28672547]
[1749934641298,0.23504571,105020.0,105010.0,0.28672547]
[1749934641514,0.24456752,105020.0,105010.0,0.28672547]
[1749934642512,0.78883394,105020.0,105010.0,0.28672547]
[1749934643241,0.24456752,105020.0,105010.0,0.28672547]
[1749934644624,0.23504571,105020.0,105010.0,0.28672547]
[1749934644850,0.24456752,105020.0,105010.0,0.28672547]
[1749934645769,0.23504571,105020.0,105010.0,0.28672547]
[1749934645998,0.04760743,105020.0,105010.0,0.28672547]
[1749934646243,0.1943258,105020.0,105010.0,0.28672547]
[1749934646466,0.20384761,105020.0,105010.0,0.28672547]
[1749934646955,0.1943258,105020.0,105010.0,0.28672547]
[1749934647873,0.0380858,105020.0,105010.0,0.28672547]
[1749934648102,0.0787658,105020.0,105010.0,0.28672547]
[1749934652983,0.06924408,105020.0,105010.0,0.28672547]
[1749934653190,0.07876571,105020.0,105010.0,0.28672547]
[1749934655357,0.69152133,105020.0,105010.0,0.28672547]
[1749934655579,0.84772133,105020.0,105010.0,0.28672547]
[1749934662636,0.83819979,105020.0,105010.0,0.28672547]
[1749934663876,0.028625,105030.0,105020.0,0.2816048]
[1749934664089,0.87634368,105030.0,105020.0,0.2816048]
[1749934664518,0.88586476,105030.0,105020.0,0.2816048]
[1749934664738,1.07628654,105030.0,105020.0,0.28160498]
[1749934664962,1.06676609,105030.0,105020.0,0.28160498]
[1749934665180,1.03820348,105030.0,105020.0,0.25503991]
[1749934665390,1.03820348,105030.0,105020.0,0.26456172]
[1749934665605,1.03820348,105030.0,105020.0,0.28360507]
[1749934666030,1.03820348,105030.0,105020.0,0.27408344]
[1749934666493,0.99752348,105030.0,105020.0,0.27408344]
[1749934666737,1.03820348,105030.0,105020.0,0.28360498]
[1749934667004,1.03820348,105030.0,105020.0,0.27408344]
[1749934667682,1.03820348,105030.0,105020.0,0.26456172]
[1749934667867,1.03820348,105030.0,105020.0,0.27408335]
[1749934668293,1.03820348,105030.0,105020.0,0.0646]
[1749934668489,1.0286824,105030.0,105020.0,0.22253991]
[1749934668698,1.73758724,105030.0,105020.0,0.002]
[1749934668910,1.76808724,105030.0,105020.0,0.002]
[1749934670600,1.73758724,105030.0,105020.0,0.002]
[1749934671949,1.64143802,105030.0,105020.0,0.002]
[1749934674493,1.61281302,105030.0,105020.0,0.002]
[1749934678515,1.61281302,105030.0,105020.0,0.0323]
[1749934678940,1.0000574,105030.0,105020.0,0.0323]
[1749934680330,0.38730178,105030.0,105020.0,0.0634]
[1749934680495,1.09620662,105030.0,105020.0,0.0634]
[1749934681809,1.09620662,105030.0,105020.0,0.0323]
[1749934683690,1.0000574,105030.0,105020.0,0.0323]
[1749934684703,0.8438574,105030.0,105020.0,0.0323]
[1749934684899,1.0000174,105030.0,105020.0,0.0323]
[1749934685645,1.0000174,105030.0,105020.0,0.0648]
[1749934686105,0.8031774,105030.0,105020.0,0.0648]
[1749934686307,1.0000174,105030.0,105020.0,0.0648]
[1749934686730,0.8031774,105030.0,105020.0,0.26476181]
[1749934686944,1.0000174,105030.0,105020.0,0.0648]
[1749934687333,1.0000174,105030.0,105020.0,0.07432199]
[1749934687918,1.0000174,105030.0,105020.0,0.0648]
[1749934689193,1.0000174,105030.0,105020.0,0.2647619]
[1749934690057,1.0000174,105030.0,105020.0,0.0648]
[1749934690967,1.0000174,105030.0,105020.0,0.2647619]
[1749934691215,1.0000174,105030.0,105020.0,0.0648]
[1749934692562,0.8031774,105030.0,105020.0,0.0648]
[1749934692739,1.0000174,105030.0,105020.0,0.0648]
[1749934705340,1.09616662,105030.0,105020.0,0.0648]
[1749934711026,1.0000174,105030.0,105020.0,0.0648]
[1749934715567,0.19042178,105030.0,105020.0,0.0648]
[1749934715808,0.9998974,105030.0,105020.0,0.0648]
[1749934718985,0.38714178,105030.0,105020.0,0.26476172]
[1749934719213,0.9998974,105030.0,105020.0,0.26476172]
[1749934719439,0.9998974,105030.0,105020.0,0.2647619]
[1749934719662,0.9998974,105030.0,105020.0,0.2742838]
[1749934719884,0.9998974,105030.0,105020.0,0.28380552]
[1749934720137,0.9998974,105030.0,105020.0,0.2742838]
[1749934720625,0.9998974,105030.0,105020.0,0.28380561]
[1749934723383,0.9998974,105030.0,105020.0,0.29332733]
[1749934725229,0.9998974,105030.0,105020.0,0.28380561]
[1749934726123,0.38714178,105030.0,105020.0,0.28380561]
[1749934726337,0.38064,105040.0,105030.0,0.27256367]
[1749934726546,0.2347989,105040.0,105030.0,0.90436046]
[1749934726750,0.2347989,105040.0,105030.0,0.29160484]
[1749934727365,0.24431899,105040.0,105030.0,0.29160484]
[1749934727566,0.08823899,105040.0,105030.0,0.29160484]
[1749934727805,0.24431899,105040.0,105030.0,0.29160484]
[1749934728248,0.43572346,105040.0,105030.0,0.29160484]
[1749934728453,1.05741496,105040.0,105030.0,0.29160484]
[1749934728979,1.04847908,105040.0,105030.0,0.29160484]
[1749934729179,1.05741496,105040.0,105030.0,0.29160484]
[1749934729493,1.05741495,105040.0,105030.0,0.29160484]
[1749934729699,1.04847908,105040.0,105030.0,0.29160484]
[1749934730057,1.05741495,105040.0,105030.0,0.29160484]
[1749934730469,1.04847908,105040.0,105030.0,0.29160484]
[1749934730786,1.05741495,105040.0,105030.0,0.29160484]
[1749934731246,0.8670113,105040.0,105030.0,0.29160484]
[1749934731397,0.83903516,105040.0,105030.0,0.29160484]
[1749934731597,0.84797102,105040.0,105030.0,0.29160484]
[1749934731808,0.8574911,105040.0,105030.0,0.29160484]
[1749934732019,0.84855525,105040.0,105030.0,0.29160484]
[1749934732216,0.85749111,105040.0,105030.0,0.29160484]
[1749934732617,0.84855525,105040.0,105030.0,0.29160484]
[1749934732844,0.85749111,105040.0,105030.0,0.29160484]
[1749934733685,0.84855525,105040.0,105030.0,0.29160484]
[1749934734119,0.82943516,105040.0,105030.0,0.29160484]
[1749934734362,0.83895516,105040.0,105030.0,0.29160484]
[1749934735527,0.84847525,105040.0,105030.0,0.29160484]
[1749934736665,0.85799543,105040.0,105030.0,0.29160484]
[1749934738299,0.83895443,105040.0,105030.0,0.29160484]
[1749934738533,0.84847434,105040.0,105030.0,0.29160484]
[1749934738768,0.001,105040.0,105030.0,1.00050968]
[1749934738998,0.20715945,105040.0,105030.0,0.90436046]
[1749934739703,0.20715936,105040.0,105030.0,0.90436046]
[1749934740172,0.05111936,105040.0,105030.0,0.90436046]
[1749934740406,0.07015872,105040.0,105030.0,0.90436046]
[1749934740606,0.07015862,105040.0,105030.0,0.90436046]
[1749934742203,0.07015853,105040.0,105030.0,0.90436046]
[1749934742627,0.88118407,105050.0,105040.0,0.26512365]
[1749934743080,0.91911549,105050.0,105040.0,0.26512365]
[1749934743573,0.92805048,105050.0,105040.0,0.27464356]
[1749934743795,0.93105048,105050.0,105040.0,0.27464356]
[1749934744507,0.92211549,105050.0,105040.0,0.27464356]
[1749934744762,0.93105048,105050.0,105040.0,0.27464356]
[1749934744963,0.93105049,105050.0,105040.0,0.27464356]
[1749934745219,0.93109804,105050.0,105040.0,0.27464356]
[1749934745461,0.74597722,105050.0,105040.0,0.28416338]
[1749934745692,0.94257722,105050.0,105040.0,0.28416338]
[1749934746856,0.93364226,105050.0,105040.0,0.2936831]
[1749934747110,0.94257722,105050.0,105040.0,0.2936831]
[1749934747538,0.94257719,105050.0,105040.0,0.30320273]
[1749934747757,0.94257715,105050.0,105040.0,0.30320273]
[1749934748503,0.93364226,105050.0,105040.0,0.30320273]
[1749934748708,0.94257719,105050.0,105040.0,0.30320273]
[1749934748933,0.94257717,105050.0,105040.0,0.30320273]
[1749934749300,0.26755209,105050.0,105040.0,0.30320273]
[1749934749504,0.04297901,105050.0,105040.0,1.01210711]
[1749934749731,0.2586162,105050.0,105040.0,0.91595789]
[1749934750132,0.2586162,105050.0,105040.0,0.30320227]
[1749934750391,0.26813502,105050.0,105040.0,0.30320227]
[1749934750619,0.07153502,105050.0,105040.0,0.30320227]
[1749934750795,0.2180162,105050.0,105040.0,0.30320227]
[1749934751209,0.0570162,105050.0,105040.0,0.30320227]
[1749934751859,0.05701611,105050.0,105040.0,0.30320227]
[1749934759519,0.06653484,105050.0,105040.0,0.30320227]
[1749934763021,0.04749756,105050.0,105040.0,0.91595789]
[1749934763225,0.04749747,105050.0,105040.0,0.91595789]
[1749934763428,0.05701602,105050.0,105040.0,0.91595789]
[1749934764253,0.04749747,105050.0,105040.0,0.91595789]
[1749934764469,0.05701611,105050.0,105040.0,0.91595789]
[1749934765532,0.04749747,105050.0,105040.0,0.91595789]
[1749934765713,0.0570162,105050.0,105040.0,0.91595789]